fUSD/lending_fUSD_20240319
["ID","MTS","AMOUNT","RATE_DAILY","PERIOD"]
[319586068,1710883863837,-961.6,0.0003041,2]
[319586069,1710883863846,-500.0,0.0003041,2]
[319586070,1710883863856,-2402.37,0.0003041,2]
[319586071,1710883863865,-500.0,0.0003041,2]
[319586072,1710883863875,-1716.71,0.0003041,2]
[319586073,1710883863884,-500.0,0.0003041,2]
[319586074,1710883863895,-1601.69,0.0003041,2]
[319586075,1710883863905,-500.0,0.0003041,2]
[319586076,1710883863914,-4667.46,0.0003041,2]
[319586077,1710883863924,-154.19295,0.0003041,7]
[319586078,1710883863934,-1218.63,0.0003041,2]
[319586079,1710883863944,-500.0,0.0003041,2]
[319586080,1710883863954,-500.0,0.0003041,2]
[319586081,1710883863963,-500.0,0.0003041,2]
[319586082,1710883863973,-1581.23,0.0003041,2]
[319586083,1710883863983,-1639.05,0.0003041,2]
[319586084,1710883863993,-500.0,0.0003041,2]
[319586085,1710883864003,-843.91,0.0003041,2]
[319586086,1710883864018,-907.99,0.0003041,2]
[319586087,1710883864028,-500.0,0.0003041,2]
[319586088,1710883864038,-500.0,0.0003041,2]
[319586089,1710883864047,-1444.08,0.0003041,2]
[319586090,1710883864057,-500.0,0.0003041,2]
[319586091,1710883864067,-2169.8,0.0003041,2]
[319586092,1710883864077,-643.36,0.0003041,2]
[319586093,1710883864087,-500.0,0.0003041,2]
[319586094,1710883864097,-500.0,0.0003041,2]
[319586095,1710883864111,-1368.44,0.0003041,2]
[319586096,1710883864121,-500.0,0.0003041,2]
[319586097,1710883864130,-500.0,0.0003041,2]
[319586098,1710883864140,-151.0,0.0003041,7]
[319586099,1710883864151,-1788.21,0.0003041,2]
[319586100,1710883864160,-997.85,0.0003041,2]
[319586101,1710883864171,-500.0,0.0003041,2]
[319586102,1710883864181,-500.0,0.0003041,2]
[319586103,1710883864191,-151.0,0.0003041,7]
[319586104,1710883864202,-2227.94,0.0003041,2]
[319586105,1710883864212,-523.21,0.0003041,2]
[319586106,1710883864222,-500.0,0.0003041,2]
[319586107,1710883864232,-500.0,0.0003041,2]
[319586108,1710883864241,-500.0,0.0003041,2]
[319586109,1710883864251,-500.0,0.0003041,2]
[319586110,1710883864265,-500.0,0.0003041,2]
[319586111,1710883864275,-1062.54,0.0003041,2]
[319586112,1710883864284,-500.0,0.0003041,2]
[319586113,1710883864294,-2421.41,0.0003041,2]
[319586114,1710883864304,-501.70715065,0.0003041,2]
[319586115,1710883864313,-500.0,0.0003041,2]
[319586116,1710883864322,-944.3,0.0003041,2]
[319586117,1710883864332,-1427.8,0.0003041,2]
[319586118,1710883864341,-721.9,0.0003041,2]
[319586119,1710883864351,-500.0,0.0003041,2]
[319586120,1710883864360,-2085.28,0.0003041,2]
[319586121,1710883864370,-807.72,0.0003041,2]
[319586122,1710883864379,-500.0,0.0003041,2]
[319586123,1710883864389,-1209.88,0.0003041,2]
[319586124,1710883864399,-629.63,0.0003041,2]
[319586125,1710883864408,-500.0,0.0003041,2]
[319586126,1710883864417,-151.0,0.0003041,7]
[319586127,1710883864427,-151.0,0.0003041,7]
[319586128,1710883864436,-2677.15,0.0003041,2]
[319586129,1710883864445,-161.06695473,0.0003041,2]
[319586130,1710883864601,-151.0,0.0003041,7]
[319586131,1710883864676,-1860.63,0.0003041,2]
[319586132,1710883864686,-608.3,0.0003041,2]
[319586133,1710883864695,-2012.38,0.0003041,2]
[319586134,1710883864705,-500.0,0.0003041,2]
[319586135,1710883864714,-689.51,0.0003041,2]
[319586136,1710883864725,-3603.52,0.0003041,2]
[319586137,1710883864734,-2566.01,0.0003041,2]
[319586138,1710883864743,-1531.43,0.0003041,2]
[319586139,1710883864752,-546.93,0.0003041,2]
[319586140,1710883864765,-2355.47,0.0003041,2]
[319586141,1710883864774,-667.89,0.0003041,2]
[319586142,1710883864783,-2131.2,0.0003041,2]
[319586143,1710883864792,-2323.6,0.0003041,2]
[319586144,1710883864801,-1029.83,0.0003041,2]
[319586145,1710883864810,-151.0,0.0003041,5]
[319586146,1710883864820,-1002.08,0.0003041,2]
[319586147,1710883864829,-920.9,0.0003041,2]
[319586148,1710883864838,-500.0,0.0003041,2]
[319586149,1710883864848,-500.0,0.0003041,2]
[319586150,1710883864857,-500.0,0.0003041,2]
[319586151,1710883864866,-500.0,0.0003041,2]
[319586152,1710883864876,-151.0,0.0003041,7]
[319586153,1710883864886,-500.0,0.0003041,2]
[319586154,1710883864895,-649.74069394,0.0003041,2]
[319586155,1710883864904,-911.98,0.0003041,2]
[319586156,1710883864914,-1678.98,0.0003041,2]
[319586157,1710883864923,-500.0,0.0003041,2]
[319586158,1710883864933,-1863.56,0.0003041,2]
[319586159,1710883864942,-1128.71,0.0003041,2]
[319586160,1710883864952,-500.0,0.0003041,2]
[319586161,1710883864962,-2681.45,0.0003041,2]
[319586162,1710883864971,-1339.78,0.0003041,2]
[319586163,1710883864981,-500.0,0.0003041,2]
[319586164,1710883864990,-1106.22,0.0003041,2]
[319586165,1710883864999,-1300.16,0.0003041,2]
[319586166,1710883865012,-992.6,0.0003041,2]
[319586167,1710883865022,-1592.35,0.0003041,2]
[319586168,1710883865031,-819.23,0.0003041,2]
[319586169,1710883865042,-1472.83,0.0003041,2]
[319586170,1710883865052,-591.539819,0.0003041,2]
[319586171,1710883865062,-1693.58,0.0003041,2]
[319586172,1710883865072,-920.2,0.0003041,2]
[319586173,1710883865082,-500.0,0.0003041,2]
[319586174,1710883865092,-3015.74,0.0003041,2]
[319586175,1710883865103,-1479.36,0.0003041,2]
[319586176,1710883865113,-1476.3,0.0003041,2]
[319586177,1710883865124,-500.0,0.0003041,2]
[319586178,1710883865135,-1044.17,0.0003041,2]
[319586179,1710883865145,-730.68,0.0003041,2]
[319586180,1710883865155,-500.0,0.0003041,2]
[319586181,1710883865165,-578.08,0.0003041,2]
[319586182,1710883865176,-643.26971826,0.0003041,2]
[319586183,1710883865185,-500.0,0.0003041,2]
[319586184,1710883865195,-595.68,0.0003041,2]
[319586185,1710883865206,-3228.34,0.0003041,2]
[319586186,1710883865216,-1788.05,0.0003041,2]
[319586187,1710883865226,-500.0,0.0003041,2]
[319586188,1710883865236,-4601.24,0.0003041,2]
[319586189,1710883865247,-3085.88,0.0003041,2]
[319586190,1710883865258,-500.0,0.0003041,2]
[319586191,1710883865269,-500.0,0.0003041,2]
[319586192,1710883865279,-500.0,0.0003041,2]
[319586193,1710883865289,-599.74,0.0003041,2]
[319586194,1710883865298,-1358.55,0.0003041,2]
[319586195,1710883865308,-670.46,0.0003041,2]
[319586196,1710883865318,-500.0,0.0003041,2]
[319586197,1710883865328,-642.15,0.0003041,2]
[319586198,1710883865337,-500.0,0.0003041,2]
[319586199,1710883865347,-566.16,0.0003041,2]
[319586200,1710883865357,-3009.86,0.0003041,2]
[319586201,1710883865367,-2938.58,0.0003041,2]
[319586202,1710883865377,-721.15,0.0003041,2]
[319586203,1710883865386,-500.0,0.0003041,2]
[319586204,1710883865396,-4752.16,0.0003041,2]
[319586205,1710883865407,-500.0,0.0003041,2]
[319586206,1710883865416,-998.08,0.0003041,2]
[319586207,1710883865425,-1617.93,0.0003041,2]
[319586208,1710883865434,-1489.28,0.0003041,2]
[319586209,1710883865444,-619.52,0.0003041,2]
[319586210,1710883865454,-3181.49,0.0003041,2]
[319586211,1710883865464,-667.9,0.0003041,2]
[319586212,1710883865474,-500.0,0.0003041,2]
[319586213,1710883865484,-771.66,0.0003041,2]
[319586214,1710883865494,-500.0,0.0003041,2]
[319586215,1710883865504,-917.14,0.0003041,2]
[319586216,1710883865516,-1132.34,0.0003041,2]
[319586217,1710883865526,-536.82,0.0003041,2]
[319586218,1710883865535,-1991.15,0.0003041,2]
[319586219,1710883865545,-4279.74,0.0003041,2]
[319586220,1710883865555,-612.08,0.0003041,2]
[319586221,1710883865565,-1110.06,0.0003041,2]
[319586222,1710883865574,-500.0,0.0003041,2]
[319586223,1710883865584,-500.0,0.0003041,2]
[319586224,1710883865593,-1665.19,0.0003041,2]
[319586225,1710883865603,-1045.55,0.0003041,2]
[319586226,1710883865613,-500.0,0.0003041,2]
[319586227,1710883865622,-1094.52,0.0003041,2]
[319586228,1710883865632,-500.0,0.0003041,2]
[319586229,1710883865642,-532.26,0.0003041,2]
[319586230,1710883865651,-500.0,0.0003041,2]
[319586231,1710883865661,-1786.87,0.0003041,2]
[319586232,1710883865671,-502.72,0.0003041,2]
[319586233,1710883865680,-786.76,0.0003041,2]
[319586234,1710883865691,-500.0,0.0003041,2]
[319586235,1710883865700,-806.79,0.0003041,2]
[319586236,1710883865710,-748.95,0.0003041,2]
[319586237,1710883865719,-500.0,0.0003041,2]
[319586238,1710883865729,-500.0,0.0003041,2]
[319586239,1710883865739,-593.79,0.0003041,2]
[319586240,1710883865748,-500.0,0.0003041,2]
[319586241,1710883865760,-8856.3,0.0003041,2]
[319586242,1710883865770,-500.0,0.0003041,2]
[319586243,1710883865780,-500.0,0.0003041,2]
[319586244,1710883865789,-760.65,0.0003041,2]
[319586245,1710883865799,-554.19,0.0003041,2]
[319586246,1710883865808,-500.0,0.0003041,2]
[319586247,1710883865817,-1106.69,0.0003041,2]
[319586248,1710883865826,-500.0,0.0003041,2]
[319586249,1710883865836,-2327.89,0.0003041,2]
[319586250,1710883865846,-601.9,0.0003041,2]
[319586251,1710883865856,-500.0,0.0003041,2]
[319586252,1710883865866,-4503.28,0.0003041,2]
[319586253,1710883865875,-515.84082727,0.0003041,2]
[319586254,1710883865885,-683.59,0.0003041,2]
[319586255,1710883865894,-1341.14,0.0003041,2]
[319586256,1710883865904,-3065.68,0.0003041,2]
[319586257,1710883865914,-500.0,0.0003041,2]
[319586258,1710883865923,-1146.77,0.0003041,2]
[319586259,1710883865933,-70475.11,0.0003041,2]
[319586260,1710883865944,-1391.85,0.0003041,2]
[319586261,1710883865953,-923.46,0.0003041,2]
[319586262,1710883865963,-996.04,0.0003041,2]
[319586263,1710883865973,-500.0,0.0003041,2]
[319586264,1710883865982,-629.18590549,0.0003041,2]
[319586265,1710883865992,-500.0,0.0003041,2]
[319586266,1710883866002,-3598.57,0.0003041,2]
[319586267,1710883866016,-500.0,0.0003041,2]
[319586268,1710883866025,-500.0,0.0003041,2]
[319586269,1710883866035,-500.0,0.0003041,2]
[319586270,1710883866045,-671.83,0.0003041,2]
[319586271,1710883866055,-570.08168237,0.0003041,2]
[319586272,1710883866065,-501.68591892,0.0003041,2]
[319586273,1710883866075,-2497.58,0.0003041,2]
[319586274,1710883866085,-1473.31,0.0003041,2]
[319586275,1710883866095,-1107.93,0.0003041,2]
[319586276,1710883866106,-500.0,0.0003041,2]
[319586277,1710883866116,-503.54,0.0003041,2]
[319586278,1710883866128,-500.0,0.0003041,2]
[319586279,1710883866137,-500.04,0.0003041,2]
[319586280,1710883866148,-743.86,0.0003041,2]
[319586281,1710883866158,-1175.56,0.0003041,2]
[319586282,1710883866167,-2560.04,0.0003041,2]
[319586283,1710883866177,-14154.91,0.0003041,2]
[319586284,1710883866187,-5898.84,0.0003041,2]
[319586285,1710883866197,-500.0,0.0003041,2]
[319586286,1710883866208,-500.0,0.0003041,2]
[319586287,1710883866218,-500.0,0.0003041,2]
[319586288,1710883866227,-500.0,0.0003041,2]
[319586289,1710883866237,-500.0,0.0003041,2]
[319586290,1710883866247,-474.33577958,0.0003041,2]
[319586291,1710883866261,-2689.21,0.0003041,2]
[319586292,1710883866270,-377.56513066,0.0003041,2]
[319586293,1710883866279,-595.84,0.0003041,2]
[319586294,1710883866289,-500.0,0.0003041,2]
[319586295,1710883866299,-1267.16,0.0003041,2]
[319586296,1710883866309,-500.0,0.0003041,2]
[319586297,1710883866320,-2980.98,0.0003041,2]
[319586298,1710883866331,-3065.32,0.0003041,2]
[319586299,1710883866341,-500.0,0.0003041,2]
[319586300,1710883866351,-151.0,0.0003041,7]
[319586301,1710883866361,-151.0,0.0003041,7]
[319586302,1710883866371,-151.0,0.0003041,7]
[319586303,1710883866380,-500.0,0.0003041,2]
[319586304,1710883866390,-500.0,0.0003041,2]
[319586305,1710883866401,-3801.0,0.0003041,2]
[319586306,1710883866411,-4556.68,0.0003041,2]
[319586307,1710883866421,-20389.23,0.0003041,2]
[319586308,1710883866431,-2891.72,0.0003041,2]
[319586309,1710883866442,-151.0,0.0003041,7]
[319586310,1710883866452,-151.0,0.0003041,7]
[319586311,1710883866463,-725.51,0.0003041,2]
[319586312,1710883866473,-151.0,0.0003041,7]
[319586313,1710883866482,-47375.69,0.0003041,2]
[319586314,1710883866492,-2490.42,0.0003041,2]
[319586315,1710883866512,-500.0,0.0003041,2]
[319586316,1710883866523,-500.0,0.0003041,2]
[319586317,1710883866533,-500.0,0.0003041,2]
[319586318,1710883866543,-151.0,0.0003041,7]
[319586319,1710883866553,-151.0,0.0003041,7]
[319586320,1710883866564,-500.0,0.0003041,2]
[319586321,1710883866575,-151.0,0.0003041,7]
[319586322,1710883866585,-4147.4,0.0003041,2]
[319586323,1710883866595,-500.0,0.0003041,2]
[319586324,1710883866606,-1945.58,0.0003041,2]
[319586325,1710883866616,-500.0,0.0003041,2]
[319586326,1710883866626,-3211.93,0.0003041,2]
[319586327,1710883866636,-500.0,0.0003041,2]
[319586328,1710883866646,-2314.74,0.0003041,2]
[319586329,1710883866656,-1600.3,0.0003041,2]
[319586330,1710883866666,-500.0,0.0003041,2]
[319586331,1710883866676,-1483.68,0.0003041,2]
[319586332,1710883866686,-559.95,0.0003041,2]
[319586333,1710883866696,-663.81,0.0003041,2]
[319586334,1710883866707,-500.0,0.0003041,2]
[319586335,1710883866717,-500.0,0.0003041,2]
[319586336,1710883866727,-438.40500756,0.0003041,2]
[319586337,1710883866738,-500.0,0.0003041,2]
[319586338,1710883866748,-10570.94,0.0003041,2]
[319586339,1710883866760,-10886.69,0.0003041,2]
[319586340,1710883866770,-3865.29,0.0003041,2]
[319586341,1710883866780,-2185.36,0.0003041,2]
[319586342,1710883866789,-2752.16,0.0003041,2]
[319586343,1710883866799,-500.0,0.0003041,2]
[319586344,1710883866809,-500.0,0.0003041,2]
[319586345,1710883866819,-500.0,0.0003041,2]
[319586346,1710883866830,-500.0,0.0003041,2]
[319586347,1710883866840,-500.0,0.0003041,2]
[319586348,1710883866850,-4043.67,0.0003041,2]
[319586349,1710883866860,-500.0,0.0003041,2]
[319586350,1710883866871,-1097.94,0.0003041,2]
[319586351,1710883866881,-606.69,0.0003041,2]
[319586352,1710883866891,-1059.8,0.0003041,2]
[319586353,1710883866901,-7939.41,0.0003041,2]
[319586354,1710883866910,-2749.39,0.0003041,2]
[319586355,1710883866919,-2790.61,0.0003041,2]
[319586356,1710883866929,-1280.77,0.0003041,2]
[319586357,1710883867361,-877.7,0.0003041,2]
[319586358,1710883867372,-3601.4,0.0003041,2]
[319586359,1710883867382,-500.0,0.0003041,2]
[319586360,1710883867392,-1476.18,0.0003041,2]
[319586361,1710883867401,-4740.7,0.0003041,2]
[319586362,1710883867412,-500.0,0.0003041,2]
[319586363,1710883867422,-500.0,0.0003041,2]
[319586364,1710883867433,-891.26,0.0003041,2]
[319586365,1710883867443,-500.0,0.0003041,2]
[319586366,1710883867453,-500.0,0.0003041,2]
[319586367,1710883867463,-500.0,0.0003041,2]
[319586368,1710883867474,-500.0,0.0003041,2]
[319586369,1710883867483,-500.0,0.0003041,2]
[319586370,1710883867493,-500.0,0.0003041,2]
[319586371,1710883867503,-500.0,0.0003041,2]
[319586372,1710883867517,-1559.83,0.0003041,2]
[319586373,1710883867527,-151.0,0.0003041,7]
[319586374,1710883867537,-151.0,0.0003041,7]
[319586375,1710883867547,-5079.64,0.0003041,2]
[319586376,1710883867556,-151.0,0.0003041,7]
[319586377,1710883867566,-513.70388868,0.0003041,2]
[319586378,1710883867576,-1577.2,0.0003041,2]
[319586379,1710883867585,-500.0,0.0003041,2]
[319586380,1710883867595,-4218.37,0.0003041,2]
[319586381,1710883867604,-9828.36,0.0003041,2]
[319586382,1710883867619,-5493.68,0.0003041,2]
[319586383,1710883867629,-500.0,0.0003041,2]
[319586384,1710883867638,-500.0,0.0003041,2]
[319586385,1710883867647,-500.0,0.0003041,2]
[319586386,1710883867657,-5160.57,0.0003041,2]
[319586387,1710883867667,-2531.37,0.0003041,2]
[319586388,1710883867677,-500.0,0.0003041,2]
[319586389,1710883867687,-425.47960993,0.0003041,2]
[319586390,1710883867697,-4906.24,0.0003041,2]
[319586391,1710883867707,-4165.31,0.0003041,2]
[319586392,1710883867718,-5275.57,0.0003041,2]
[319586393,1710883867727,-500.0,0.0003041,2]
[319586394,1710883867737,-500.0,0.0003041,2]
[319586395,1710883867747,-1056.79,0.0003041,2]
[319586396,1710883867759,-500.0,0.0003041,2]
[319586397,1710883867769,-500.0,0.0003041,2]
[319586398,1710883867779,-4839.55,0.0003041,2]
[319586399,1710883867789,-500.0,0.0003041,2]
[319586400,1710883867799,-500.0,0.0003041,2]
[319586401,1710883867809,-7419.89,0.0003041,2]
[319586402,1710883867820,-4229.15,0.0003041,2]
[319586403,1710883867830,-3245.57,0.0003041,2]
[319586404,1710883867840,-1194.33,0.0003041,2]
[319586405,1710883867849,-151.0,0.0003041,7]
[319586406,1710883867859,-500.0,0.0003041,2]
[319586407,1710883867869,-4377.03,0.0003041,2]
[319586408,1710883867879,-500.0,0.0003041,2]
[319586409,1710883867888,-500.0,0.0003041,2]
[319586410,1710883867898,-500.0,0.0003041,2]
[319586411,1710883867908,-2111.4,0.0003041,2]
[319586412,1710883867918,-8031.56,0.0003041,2]
[319586413,1710883867930,-651.65,0.0003041,2]
[319586414,1710883867943,-500.0,0.0003041,2]
[319586415,1710883867953,-500.0,0.0003041,2]
[319586416,1710883867964,-1423.31,0.0003041,2]
[319586417,1710883867974,-5259.72,0.0003041,2]
[319586418,1710883867986,-1204.58,0.0003041,2]
[319586419,1710883867995,-2930.26,0.0003041,2]
[319586420,1710883868005,-11130.16,0.0003041,2]
[319586421,1710883868018,-500.0,0.0003041,2]
[319586422,1710883868027,-832.52,0.0003041,2]
[319586423,1710883868037,-9249.81,0.0003041,2]
[319586424,1710883868047,-5684.8,0.0003041,2]
[319586425,1710883868057,-500.0,0.0003041,2]
[319586426,1710883868067,-500.0,0.0003041,2]
[319586427,1710883868077,-3804.28,0.0003041,2]
[319586428,1710883868087,-8973.34,0.0003041,2]
[319586429,1710883868097,-500.0,0.0003041,2]
[319586430,1710883868112,-1414.18,0.0003041,2]
[319586431,1710883868121,-490.24674225,0.0003041,2]
[319586432,1710883868131,-500.0,0.0003041,2]
[319586433,1710883868141,-3168.58,0.0003041,2]
[319586434,1710883868150,-8338.3,0.0003041,2]
[319586435,1710883868164,-500.0,0.0003041,2]
[319586436,1710883868173,-4033.8,0.0003041,2]
[319586437,1710883868184,-3441.43,0.0003041,2]
[319586438,1710883868194,-500.0,0.0003041,2]
[319586439,1710883868203,-500.0,0.0003041,2]
[319586440,1710883868213,-7232.08,0.0003041,2]
[319586441,1710883868223,-10350.75,0.0003041,2]
[319586442,1710883868232,-500.0,0.0003041,2]
[319586443,1710883868242,-3837.76,0.0003041,2]
[319586444,1710883868252,-4633.1,0.0003041,2]
[319586445,1710883868264,-500.0,0.0003041,2]
[319586446,1710883868274,-151.0,0.0003041,7]
[319586447,1710883868284,-12146.42,0.0003041,2]
[319586448,1710883868293,-151.0,0.0003041,7]
[319586449,1710883868303,-960.52,0.0003041,2]
[319586450,1710883868313,-151.0,0.0003041,7]
[319586451,1710883868322,-1420.4,0.0003041,2]
[319586452,1710883868332,-10482.14,0.0003041,2]
[319586453,1710883868342,-4285.4,0.0003041,2]
[319586454,1710883868352,-500.0,0.0003041,2]
[319586455,1710883868361,-500.0,0.0003041,2]
[319586456,1710883868371,-500.0,0.0003041,2]
[319586457,1710883868381,-1293.02,0.0003041,2]
[319586458,1710883868391,-4258.27,0.0003041,2]
[319586459,1710883868401,-500.0,0.0003041,2]
[319586460,1710883868411,-2338.93,0.0003041,2]
[319586461,1710883868420,-13155.35,0.0003041,2]
[319586462,1710883868430,-569.11,0.0003041,2]
[319586463,1710883868439,-753.19,0.0003041,2]
[319586464,1710883868449,-11295.13,0.0003041,2]
[319586465,1710883868459,-5511.71,0.0003041,2]
[319586466,1710883868468,-500.0,0.0003041,2]
[319586467,1710883868478,-2434.72,0.0003041,2]
[319586468,1710883868487,-151.0,0.0003041,7]
[319586469,1710883868497,-686.32,0.0003041,2]
[319586470,1710883868506,-151.0,0.0003041,7]
[319586471,1710883868520,-151.0,0.0003041,7]
[319586472,1710883868530,-3459.87,0.0003041,2]
[319586473,1710883868540,-151.0,0.0003041,7]
[319586474,1710883868550,-151.0,0.0003041,7]
[319586475,1710883868560,-2290.53,0.0003041,2]
[319586476,1710883868570,-151.0,0.0003041,7]
[319586477,1710883868579,-1344.41,0.0003041,2]
[319586478,1710883868589,-3981.65,0.0003041,2]
[319586479,1710883868599,-22669.64,0.0003041,2]
[319586480,1710883868609,-151.0,0.0003041,7]
[319586481,1710883868619,-500.0,0.0003041,2]
[319586482,1710883868630,-16782.69,0.0003041,2]
[319586483,1710883868639,-151.0,0.0003041,7]
[319586484,1710883868649,-9329.88,0.0003041,2]
[319586485,1710883868659,-151.0,0.0003041,7]
[319586486,1710883868669,-500.0,0.0003041,2]
[319586487,1710883868678,-6850.67,0.0003041,2]
[319586488,1710883868689,-500.0,0.0003041,2]
[319586489,1710883868701,-9425.82,0.0003041,2]
[319586490,1710883868711,-500.0,0.0003041,2]
[319586491,1710883868722,-500.0,0.0003041,2]
[319586492,1710883868731,-7313.78,0.0003041,2]
[319586493,1710883868741,-500.0,0.0003041,2]
[319586494,1710883868751,-3365.03,0.0003041,2]
[319586495,1710883868763,-6200.56,0.0003041,2]
[319586496,1710883868772,-500.0,0.0003041,2]
[319586497,1710883868782,-4563.38,0.0003041,2]
[319586498,1710883868791,-294.136098,0.0003041,7]
[319586499,1710883868801,-294.136098,0.0003041,7]
[319586500,1710883868810,-9598.64,0.0003041,2]
[319586501,1710883868820,-864.79,0.0003041,2]
[319586502,1710883868829,-294.136098,0.0003041,7]
[319586503,1710883868839,-500.0,0.0003041,2]
[319586504,1710883868848,-500.0,0.0003041,2]
[319586505,1710883868857,-294.136098,0.0003041,7]
[319586506,1710883868867,-2680.0,0.0003041,2]
[319586507,1710883868877,-294.136098,0.0003041,7]
[319586508,1710883868886,-644.4688218,0.0003041,2]
[319586509,1710883868896,-294.136098,0.0003041,7]
[319586510,1710883868906,-3800.13,0.0003041,2]
[319586511,1710883868915,-10097.33,0.0003041,2]
[319586512,1710883868925,-8797.6,0.0003041,2]
[319586513,1710883868934,-7590.43,0.0003041,2]
[319586514,1710883868944,-542.95,0.0003041,2]
[319586515,1710883868953,-563.84,0.0003041,2]
[319586516,1710883868963,-500.0,0.0003041,2]
[319586517,1710883868973,-1046.81,0.0003041,2]
[319586518,1710883868983,-500.0,0.0003041,2]
[319586519,1710883868993,-535.47,0.0003041,2]
[319586520,1710883869002,-8014.33,0.0003041,2]
[319586521,1710883869015,-520.47,0.0003041,2]
[319586522,1710883869025,-48477.6,0.0003041,2]
[319586523,1710883869034,-1416.49,0.0003041,2]
[319586524,1710883869043,-151.0,0.0003041,7]
[319586525,1710883869053,-7398.21,0.0003041,2]
[319586526,1710883869062,-151.0,0.0003041,7]
[319586527,1710883869072,-500.0,0.0003041,2]
[319586528,1710883869082,-151.0,0.0003041,7]
[319586529,1710883869091,-3797.58,0.0003041,2]
[319586530,1710883869102,-5350.36,0.0003041,2]
[319586531,1710883869112,-151.0,0.0003041,7]
[319586532,1710883869122,-151.0,0.0003041,7]
[319586533,1710883869134,-151.0,0.0003041,7]
[319586534,1710883869144,-7343.47,0.0003041,2]
[319586535,1710883869153,-5058.71,0.0003041,2]
[319586536,1710883869163,-7073.37,0.0003041,2]
[319586537,1710883869173,-500.0,0.0003041,2]
[319586538,1710883869183,-500.0,0.0003041,2]
[319586539,1710883869192,-3114.8,0.0003041,2]
[319586540,1710883869203,-516.58,0.0003041,2]
[319586541,1710883869212,-3384.78,0.0003041,2]
[319586542,1710883869222,-500.0,0.0003041,2]
[319586543,1710883869231,-9605.72,0.0003041,2]
[319586544,1710883869241,-151.0,0.0003041,7]
[319586545,1710883869251,-151.0,0.0003041,7]
[319586546,1710883869263,-151.0,0.0003041,7]
[319586547,1710883869273,-4830.77,0.0003041,2]
[319586548,1710883869283,-1521.0,0.0003041,2]
[319586549,1710883869293,-1377.4,0.0003041,2]
[319586550,1710883869302,-151.0,0.0003041,7]
[319586551,1710883869312,-222.839139,0.0003041,7]
[319586552,1710883869321,-6164.8,0.0003041,2]
[319586553,1710883869330,-10419.2,0.0003041,2]
[319586554,1710883869339,-301.34254,0.0003041,7]
[319586555,1710883869349,-500.0,0.0003041,2]
[319586556,1710883869358,-530.46487604,0.0003041,2]
[319586557,1710883869368,-27662.5,0.0003041,2]
[319586558,1710883869377,-13801.64,0.0003041,2]
[319586559,1710883869386,-1319.55,0.0003041,2]
[319586560,1710883869396,-813.27,0.0003041,2]
[319586561,1710883869406,-16616.69,0.0003041,2]
[319586562,1710883869415,-1101.07,0.0003041,2]
[319586563,1710883869425,-4213.14,0.0003041,2]
[319586564,1710883869435,-7171.46,0.0003041,2]
[319586565,1710883869444,-2825.94,0.0003041,2]
[319586566,1710883869454,-500.0,0.0003041,2]
[319586567,1710883869463,-151.0,0.0003041,7]